Cogmind - Beta 17 @@@ ROGUE MODE // 2026.07.26 @ 01:03:36 Player: rz Result: Self-destructed Performance ------------- Evolutions (1) 500 Regions Visited (2) 400 Robots Destroyed (16) 80 Value Destroyed (377) 377 Prototype IDs (0) 0 Alien Tech Used (0) 0 Bonus (0) 0 TOTAL SCORE: 1357 Bonus ------- None Cogmind --------- Core Integrity 400/400 Matter 300/300 Energy 160/160 System Corruption 0% Temperature Cool (0) Movement Rolling (140) Ox4 Location -9/Materials Parts ------- > --- POWER (1) -------- Light Nuclear Core > --- PROPULSION (4) --- Wheel > --- UTILITY (2) ------ Heat Sink High-capacity Storage Unit > --- WEAPON (2) ------- Particle Gun Light Assault Rifle > --- INVENTORY (20) --- Ion Engine Ion Engine Light Ion Engine Light Treads Wheel Wheel Wheel Compact Wheel Compact Wheel Compact Wheel Sensor Array Improved Terrain Scanner Medium Laser Small Laser Light Assault Rifle Peak State ------------ > --- POWER ------------ Light Nuclear Core > --- PROPULSION ------- Light Treads Light Treads > --- UTILITY ---------- Heat Sink High-capacity Storage Unit > --- WEAPON ----------- Particle Gun Light Assault Rifle > --- INVENTORY -------- Ion Engine Ion Engine Light Ion Engine Light Treads Wheel Wheel Wheel Wheel Compact Wheel Compact Wheel Compact Wheel Sensor Array Improved Terrain Scanner Medium Laser Small Laser Light Assault Rifle [Rating: 11] Favorites ----------- Power Light Ion Engine Engine Light Ion Engine Power Core Light Nuclear Core Propulsion Light Treads Treads Light Treads Wheel Wheel Utility High-capacity Storage Unit Device Heat Sink Storage High-capacity Storage Unit Protection Propulsion Shielding Weapon Light Assault Rifle Energy Gun Medium Laser Ballistic Gun Light Assault Rifle Build | -11 -10 -9 ------- Run | Yrd Mat Mat Slots Evolved 2 | . . 2 Power . | . . . Propulsion 2 | . . 2 Utility . | . . . Weapon . | . . . Parts Attached 15 | 6 9 . Power 3 | 1 2 . Engine 2 | 1 1 . Core 1 | . 1 . Reactor . | . . . Propulsion 3 | 2 1 . Treads 2 | 2 . . Leg . | . . . Wheel 1 | . 1 . Hover . | . . . Flight . | . . . Utility 6 | 1 5 . Device 1 | . 1 . Storage 4 | 1 3 . Processor . | . . . Hackware . | . . . Protection 1 | . 1 . Artifact . | . . . Weapon 3 | 2 1 . Energy Gun 2 | 1 1 . Energy Cannon . | . . . Ballistic Gun 1 | 1 . . Ballistic Cannon . | . . . Launcher . | . . . Special Weapon . | . . . Impact Weapon . | . . . Slashing Weapon . | . . . Piercing Weapon . | . . . Special Melee Weapon . | . . . Unidentified Prototypes . | . . . Parts Lost 4 | . 4 . Power 1 | . 1 . Propulsion 2 | . 2 . Utility 1 | . 1 . Weapon . | . . . Highest Loss Streak 2 | . 2 . To Critical Strikes . | . . . Average Backups 11 | 4 12 15 Power 1 | . 1 3 Propulsion 6 | 3 7 7 Utility 2 | . 2 2 Weapon . | . . 3 Tool/Special . | . . . Unused Backups 13 | . . 13 Power 2 | . . 2 Propulsion 7 | . . 7 Utility 2 | . . 2 Weapon 2 | . . 2 Tool/Special . | . . . Average Slot Usage (%) 93 | . 94 66 Engine 10 | . 11 . Core 2 | . 2 11 Treads 26 | . 27 . Device 1 | . 1 11 Storage 16 | . 16 11 Protection 5 | . 5 . Energy Gun 13 | . 14 11 Ballistic Gun 13 | . 14 11 Peak Build Rating 11 | 7 11 10 Average Rating 7 | 5 8 10 On Entrance 5 | . 7 10 Avg Prop Armor Cover (%) . | . . . Naked Turns . | . . . Heaviest Build 50 | 11 50 50 Greatest Support 40 | 40 40 10 Greatest Overweight (x) 4 | 2 4 4 Average Overweight (x) . | . . 4 Largest Inventory Capacity 20 | 8 20 20 Average Capacity 15 | 7 17 20 Most Carried 16 | 8 16 15 Average Carried 11 | 5 12 15 Final Capacity 20 | 8 20 20 Final Carried 15 | 8 15 15 Class Distribution -------------------- 100% | Mutant Dominant Class ---------------- Mutant | -10/Materials Mutant | -9/Materials Resources | -11 -10 -9 ----------- Run | Yrd Mat Mat Matter Collected 397 | 272 125 . Remotely . | . . . Salvage Created 588 | 140 448 . Parts 33 | 14 19 . Haulers Intercepted 2 | . 2 . Recyclers Shooed . | . . . Parts Field Recycled . | . . . Retrieved Matter . | . . . Parts Self-Destructed . | . . . Prevented . | . . . Parts Restored . | . . . Kills | -11 -10 -9 ------- Run | Yrd Mat Mat Combat Hostiles Destroyed 9 | . 9 . Guns 9 | . 9 . Classes Destroyed 5 | 2 3 . Worker 1 | . 1 . Tunneler 3 | 3 . . Hauler 2 | . 2 . Recycler 1 | 1 . . Grunt 9 | . 9 . Best Kill Streak 3 | 2 3 . Combat Bots Only 2 | . 2 . Max Kills in Single Turn 1 | 1 1 . Gunslinging . | . . . Exploded . | . . . Melee . | . . . Uniques/NPCs Destroyed . | . . . Combat | -11 -10 -9 -------- Run | Yrd Mat Mat Hostile Shots Fired 79 | . 79 . Missed 16 | . 16 . Hits 63 | . 63 . Projectile 63 | . 63 . Critical Strikes 2 | . 2 . Actively Blocked 1 | . 1 . Damage Taken 766 | . 766 . Core 177 | . 177 . Absorbed by Shields . | . . . Redirected to Shielding 52 | . 52 . Core Remaining (%) 64 | 100 29 . Volleys Fired 67 | 12 55 . Largest 2 | 2 2 . Hottest 85 | 70 85 . Shots Fired 134 | 24 110 . Gun 134 | 24 110 . Cannon . | . . . Launcher . | . . . Special . | . . . Kinetic 67 | 12 55 . Thermal 67 | 12 55 . Explosive . | . . . Electromagnetic . | . . . Robot Hit Streak 9 | 8 9 . Robot Miss Streak 4 | 4 3 . Penetration Max . | . . . Secondary Targets 1 | . 1 . Max Gunslinging Chain 1 | . 1 . Shots Hit Robots 89 | 15 74 . Core Hits 37 | 6 31 . Critical Kills . | . . . Critical Parts Destroyed 1 | . 1 . Critical Strikes 4 | 1 3 . Burn 3 | 1 2 . Destroy 1 | . 1 . Melee Attacks . | . . . Impact . | . . . Slashing . | . . . Piercing . | . . . Sneak Attacks . | . . . Combat Hostiles . | . . . Follow-up Attacks . | . . . Damage Inflicted 955 | 155 800 . Guns 955 | 155 800 . Cannons . | . . . Explosions . | . . . Melee . | . . . Ramming . | . . . Kinetic 402 | 67 335 . Thermal 553 | 88 465 . Explosive . | . . . Electromagnetic . | . . . Impact . | . . . Slashing . | . . . Piercing . | . . . Highest Corruption . | . . . Average Corruption . | . . . Corruption Purged . | . . . Corruption Blocked . | . . . Overload Shots . | . . . Overflow Damage . | . . . Projectiles . | . . . Explosions . | . . . Melee . | . . . Knockbacks . | . . . Impact . | . . . Kinetic . | . . . Secondary . | . . . Self-Inflicted Damage . | . . . Shots . | . . . Rammed . | . . . Targets Rammed . | . . . Kicked . | . . . Crushed . | . . . Highest Temperature 318 | 80 318 . Average Temperature 102 | 37 115 . Received Heat Transfer 453 | . 453 . Effects 5 | . 5 . Interference 5 | . 5 . Siege Activations . | . . . Martial Activations . | . . . Shielding Activations . | . . . Robots Disrupted . | . . . Combat Hostiles . | . . . Robots Corrupted . | . . . Combat Hostiles . | . . . Parts Fried . | . . . Impact Corruptions . | . . . Robots Melted . | . . . Combat Hostiles . | . . . Parts Melted 3 | . 3 . Heat Transferred 1813 | 333 1480 . Parts Sabotaged . | . . . Parts Stolen . | . . . Parts Stripped . | . . . Power Chain Reactions . | . . . Alert | -11 -10 -9 ------- Run | Yrd Mat Mat Maximum Alert Level . | . . . Low Security (%) 100 | 100 100 100 Level 1 . | . . . Level 2 . | . . . Level 3 . | . . . Level 4 . | . . . Level 5 . | . . . High Security . | . . . Max Security . | . . . Peak Influence 51 | 5 51 15 Initial 15 | . . 15 Average 9 | . 11 15 Influence Increases 287 | 20 267 . Destroy 0b10 Robot/C 180 | . 180 . Destroy 0b10 Robot/NC 35 | 20 15 . Destroy Leader 64 | . 64 . Successful Hack 8 | . 8 . Influence Decreases 272 | 20 230 22 Entered New Map 22 | . . 22 Time Decay 210 | 20 190 . Lost Part 40 | . 40 . Squads Dispatched 3 | . 3 . Investigation 1 | . 1 . Extermination . | . . . Reinforcement 2 | . 2 . Assault . | . . . Garrison . | . . . Intercept . | . . . Searches Triggered . | . . . Construction Impeded . | . . . Haulers Reinforced . | . . . Active Scanning Responses . | . . . Cargo Convoy Interrupts . | . . . Stealth | -11 -10 -9 --------- Run | Yrd Mat Mat Distress Signals 1 | . 1 . Communications Jammed . | . . . Distress Signals . | . . . Times Spotted 21 | . 21 . Peak Tracking Total 5 | . 5 . Tactical Retreats . | . . . Traps | -11 -10 -9 ------- Run | Yrd Mat Mat Traps Triggered 1 | . 1 . Indirectly . | . . . Trap Hack Attempts . | . . . Triggered . | . . . Disarmed . | . . . Reprogrammed . | . . . Reused . | . . . Traps Extracted . | . . . Installed . | . . . Triggered . | . . . Machines | -11 -10 -9 ---------- Run | Yrd Mat Mat Machines Disabled . | . . . Max in Single Turn . | . . . Machines Repaired . | . . . Machines Dismantled . | . . . Machines Sabotaged . | . . . Overloaded Fab Kills . | . . . Hacking | -11 -10 -9 --------- Run | Yrd Mat Mat Machines Accessed 6 | . 6 . Terminals 6 | . 6 . Fabricators . | . . . Repair Stations . | . . . Recycling Units . | . . . Scanalyzers . | . . . Garrison Access . | . . . Total Hacks 10 | . 10 . Successful 3 | . 3 . Failed 7 | . 7 . Catastrophic 3 | . 3 . Database Lockouts . | . . . Manual 8 | . 8 . Terminals 10 | . 10 . Fabricators . | . . . Repair Stations . | . . . Recycling Units . | . . . Scanalyzers . | . . . Garrison Access . | . . . Terminal Hacks 3 | . 3 . Branch Access Points 1 | . 1 . Locate Traps 1 | . 1 . Zone Layout 1 | . 1 . Fabricator Hacks . | . . . Repair Station Hacks . | . . . Recycling Unit Hacks . | . . . Scanalyzer . | . . . Garrison Access Hacks . | . . . Unauthorized Hacks . | . . . Terminals . | . . . Fabricators . | . . . Repair Stations . | . . . Recycling Units . | . . . Scanalyzers . | . . . Garrison Access . | . . . Data Cores Recovered . | . . . Used . | . . . Hacking Detections 6 | . 6 . Full Trace Events . | . . . Feedback Events . | . . . Feedback Blocked . | . . . Robot Schematics Acquired . | . . . Robots Built . | . . . Authchips . | . . . Time . | . . . Total Robot Build Rating . | . . . Part Schematics Acquired . | . . . Parts Built . | . . . Authchips . | . . . Time . | . . . Total Part Build Rating . | . . . Part Studies Acquired . | . . . Parts Repaired . | . . . Time . | . . . Parts Recycled . | . . . Recycled Matter . | . . . Retrieved Matter . | . . . Retrieved Components . | . . . Parts Scanalyzed . | . . . Part Schematics Acquired . | . . . Parts Damaged . | . . . Bothacking | -11 -10 -9 ------------ Run | Yrd Mat Mat Used RIF Installer . | . . . Robots Hacked . | . . . Non-combat . | . . . Combat . | . . . Robot Hacks Applied . | . . . Relay Couplers Released . | . . . Fabnet Peak Effective % . | . . . Robots Rewired . | . . . Allies Hacked . | . . . Hacks Repelled . | . . . Allies | -11 -10 -9 -------- Run | Yrd Mat Mat Total Allies . | . . . Largest Group . | . . . Highest-Rated Group . | . . . Highest-Rated Ally . | . . . Total Orders . | . . . Ally Attacks . | . . . Total Damage . | . . . Kills . | . . . Allies Corrupted . | . . . Allies Melted . | . . . Intel | -11 -10 -9 ------- Run | Yrd Mat Mat Active Infowar (turns) . | . . . Robot Analysis Total . | . . . Derelict Logs Recovered . | . . . Drone Launches . | . . . Drone Recoveries . | . . . Exploration | -11 -10 -9 ------------- Run | Yrd Mat Mat Turns Passed 1119 | 177 933 9 Spaces Moved 452 | 83 363 6 Core 7 | 7 . . Treads 434 | 76 358 . Legs . | . . . Wheels 11 | . 5 6 Hover . | . . . Flight . | . . . Fastest Speed 50 | 50 140 140 Average Speed 191 | 153 201 140 Slowest Speed 240 | 160 240 140 Overloaded Moves . | . . . Propulsion Burnouts . | . . . Robots Hopped . | . . . Potential Cave-ins . | . . . Cave-ins Triggered . | . . . Exploration Rate (%) 24 | 5 65 4 Regions Visited 2 Branch Regions . Pre-discovered Areas . | . . . Known Exits Taken . | . . . Unknown Exits Taken 2 | 1 1 . Scrap Searched . | . . . Spaces Dug . | . . . Terrain Destroyed . | . . . Melee . | . . . Projectile . | . . . AOE . | . . . Terrain Rammed . | . . . Walls Destroyed . | . . . Machines Disabled . | . . . Actions | -11 -10 -9 --------- Run | Yrd Mat Mat Total 577 | 108 463 6 Wait 28 | . 28 . Move 450 | 82 362 6 Hop . | . . . Pick Up 14 | 8 6 . Fast Attach 10 | 6 4 . Attach 1 | . 1 . Detach . | . . . Swap 4 | . 4 . Drop 3 | . 3 . Fire 67 | 12 55 . Melee . | . . . Ram . | . . . Kick . | . . . Crush . | . . . Escape Stasis . | . . . Rewire . | . . . Trap . | . . . Miscellaneous . | . . . Route ------- -11/Scrapyard -10/Materials (discovered 3 exits: [*Mat x2] / Min) -9/Materials History --------- Turn | Location | Event 11 | -11/Scrapyard | Discovered new exit (range 14) 178 | -11/Scrapyard | Entered Materials 266 | -10/Materials | Identified exit to Mines 301 | -10/Materials | Build established: Mutant 558 | -10/Materials | Discovered new exit (range 16) 929 | -10/Materials | Core integrity fell below 50% 1070 | -10/Materials | Discovered new exit (range 16) 1111 | -10/Materials | Entered another Materials area 1111 | -9/Materials | Evolved 2 slots: Propulsion x2 1120 | -9/Materials | Self-destructed Last Messages --------------- 01017_ Overheating: System interference. 01017_ Lgt. Assault Rifle temporarily disabled. 01017_ Particle Gun temporarily disabled. 01032_ G-34 Mercenary destroyed. 01034_ Acquired 9 matter. 01039_ Acquired Heat Sink. 01041_ R-06 Scavenger collects Aluminum Leg. 01069_ K-01 Serf collects debris. 01070_ EXIT=FOUND 01074_ K-01 Serf collects debris. 01094_ Triggered Alarm Trap. 01094_ An alarm sounds. 01094_ ALERT: Alarm triggered, dispatching investigation squad. 01098_ Lgt. Treads destroyed. 01106_ G-34 Mercenary destroyed. 01109_ Acquired 12 matter. PARAMETERS=PROPULSION+2 LOCATION=UNKNOWN GOAL=ESCAPE Map ----- +----------------------------------------------------+ | ????????????????????????????????????? | | ????????????????????????????????????? | | ????????????????????????????????????? | | ????????????????????????????????????? | | ????????????????????????????????????? | | ????????????????????????????????????? | | ????????????????????????????????????? | | ????????????????????????????????????? | | ????????????????????????????????????? | | ????????????????????????????????????? | | ????????????????????????????????????? | | ????????????????????##########??????? | | ????????????????????# #??????? | | ????????????????????# #??????? | | ????????????????????# #??????? | | ????????????????????# ]] #??????? | | ????????????????????# ]] #??????? | | ????????????????????# ] #??????? | | ????????????????????# #??????? | | ????????????????????? #??????? | | ??????????????????????? ????????? | | ???????????##############+####??????? | | ?????????? #??????? | | ?????????? #??????? | | ?????????? #??????? | | ???????????##############@####??????? | | ????????????????????????# ????????? | | ????????????????????????# ""??????? | | ????????????????????????# """""????? | | ????????????????????????# """""????? | | ????????????????????????# """""????? | | ????????????????????????# """ ????? | | ????????????????????????# ???????? | | ????????????????????????# ???????? | | ?????????????????????????#####??????? | | ????????????????????????????????????? | | ????????????????????????????????????? | | ????????????????????????????????????? | | ????????????????????????????????????? | | ????????????????????????????????????? | | ????????????????????????????????????? | | ????????????????????????????????????? | | ????????????????????????????????????? | | ????????????????????????????????????? | | ????????????????????????????????????? | | ????????????????????????????????????? | | ????????????????????????????????????? | | ????????????????????????????????????? | | ????????????????????????????????????? | | ????????????????????????????????????? | +----------------------------------------------------+ Best States ------------- Heat Dissipation 38 Energy Generation 14 Energy Capacity 250 Matter Stores 300 Matter Capacity 300 Sight Range 16 Terrain Scan Density 10 Propulsion Shielding 33 Evasion (%) 40 Recoil Reduction 2 Item Schematics ----------------- None Robot Schematics ------------------ None Fabricated ------------ Nothing Repaired ---------- Nothing Studied --------- None Alien Tech Used ----------------- None Achievements -------------- None Challenges ------------ None Game ------ Seed RocketSmartVibroblade Manual? 0 Play Time 00:06:46 Cumulative 113.2 hours Start 2026.07.26 @ 00:56:56 End 2026.07.26 @ 01:03:36 Sessions 1 Manual Loads 0 Difficulty Rogue Special Mode None Game No. 127 Rogue 73 Adventurer 54 Explorer 0 Win Type - Total 3 Types 2/0/0/1/0/0/0/0/0/0 Lore% 51 Gallery% 49 Achievement% 44 Wizard Run 0 Options --------- Layout 1 ASCII 0 Keyboard 0 Movement Mouse Keybinds 1 Fullscreen 1 Font 32/Tamsyn Map View 50x35 Zoom Use 0% Tactical HUD 1 Map Filters NONE Filters NONE Steam 1 RUN: 9d123b52-9711-4738-a6f1-857a4903828d